fUSD/lending_fUSD_20240713
["ID","MTS","AMOUNT","RATE_DAILY","PERIOD"]
[331961669,1720901440763,-150.0,0.00013901,2]
[331961671,1720901440772,-150.0,0.00013902,2]
[331961673,1720901440781,-150.0,0.00013904,2]
[331961675,1720901440790,-150.0,0.0001391,2]
[331961677,1720901440800,-150.0,0.00013911,2]
[331961679,1720901440810,-150.0,0.00013912,2]
[331961681,1720901440819,-150.0,0.00013912,2]
[331961683,1720901440828,-150.0,0.00013913,2]
[331961685,1720901440838,-150.0,0.0001392,2]
[331961687,1720901440847,-150.0,0.00013923,2]
[331961689,1720901440856,-150.0,0.00013923,2]
[331961691,1720901440866,-150.0,0.00013924,2]
[331961693,1720901440875,-150.0,0.00013927,2]
[331961695,1720901440885,-150.0,0.0001393,2]
[331961697,1720901440895,-150.0,0.00013931,2]
[331961699,1720901440905,-150.0,0.00013935,2]
[331961701,1720901440914,-150.0,0.0001394,2]
[331961703,1720901440923,-150.0,0.00013945,2]
[331961705,1720901440933,-150.0,0.00013962,2]
[331961707,1720901440942,-150.0,0.00013972,2]
[331961709,1720901440952,-150.0,0.00013972,2]
[331961711,1720901440961,-150.0,0.00013974,2]
[331961713,1720901440971,-150.0,0.00013975,2]
[331961715,1720901440981,-504.0,0.00013979,2]
[331961717,1720901440990,-150.0,0.00013979,2]
[331961719,1720901440999,-150.0,0.00013979,2]
[331961721,1720901441009,-150.0,0.00013981,2]
[331961723,1720901441018,-150.0,0.00013983,2]
[331961725,1720901441027,-150.0,0.00013985,2]
[331961727,1720901441036,-150.0,0.00013986,2]
[331961729,1720901441046,-780.33589965,0.0001399,3]
[331961732,1720901441055,-1524.05729412,0.00013999,2]
[331961734,1720901441064,-500.0,0.00013999,2]
[331961736,1720901441073,-500.0,0.00013999,2]
[331961738,1720901441082,-500.0,0.00013999,2]
[331961740,1720901441091,-500.0,0.00013999,2]
[331961742,1720901441100,-500.0,0.00013999,2]
[331961744,1720901441109,-500.0,0.00013999,2]
[331961746,1720901441119,-500.0,0.00013999,2]
[331961748,1720901441127,-500.0,0.00013999,2]
[331961750,1720901441136,-500.0,0.00013999,2]
[331961752,1720901441145,-500.0,0.00013999,2]
[331961754,1720901441154,-500.0,0.00013999,2]
[331961756,1720901441163,-500.0,0.00013999,2]
[331961758,1720901441172,-500.0,0.00013999,2]
[331961760,1720901441181,-500.0,0.00013999,2]
[331961762,1720901441190,-500.0,0.00013999,2]
[331961764,1720901441201,-500.0,0.00013999,2]
[331961766,1720901441214,-502.9,0.00013999,2]
[331961768,1720901441224,-500.0,0.00013999,2]
[331961770,1720901441234,-271.24,0.00013999,2]
[331961772,1720901441245,-500.0,0.00013999,2]
[331961774,1720901441255,-500.0,0.00013999,2]
[331961776,1720901441265,-500.0,0.00013999,2]
[331961778,1720901441276,-500.0,0.00013999,2]
[331961780,1720901441287,-500.0,0.00013999,2]
[331961782,1720901441298,-500.0,0.00013999,2]
[331961784,1720901441309,-500.0,0.00013999,2]
[331961786,1720901441319,-500.0,0.00013999,2]
[331961788,1720901441328,-551.97,0.00013999,2]
[331961790,1720901441340,-500.0,0.00013999,2]
[331961793,1720901441350,-500.0,0.00013999,2]
[331961795,1720901441359,-500.0,0.00013999,2]
[331961796,1720901441370,-500.0,0.00013999,2]
[331961799,1720901441380,-300.0,0.00013999,2]
[331961801,1720901441390,-300.0,0.00013999,2]
[331961803,1720901441400,-400.0,0.00013999,2]
[331961805,1720901441410,-502.58,0.00013999,2]
[331961807,1720901441420,-500.0,0.00013999,2]
[331961809,1720901441431,-500.0,0.00013999,2]
[331961811,1720901441442,-732.37,0.00013999,2]
[331961813,1720901441451,-500.0,0.00013999,2]
[331961815,1720901441461,-525.41,0.00013999,2]
[331961817,1720901441471,-500.0,0.00013999,2]
[331961819,1720901441480,-500.0,0.00013999,2]
[331961821,1720901441490,-527.23,0.00013999,2]
[331961823,1720901441500,-300.0,0.00013999,2]
[331961825,1720901441509,-300.0,0.00013999,2]
[331961827,1720901441519,-1653.72,0.00013999,2]
[331961829,1720901441530,-500.0,0.00013999,2]
[331961831,1720901441539,-500.0,0.00013999,2]
[331961833,1720901441549,-560.5,0.00013999,2]
[331961835,1720901441560,-500.0,0.00013999,2]
[331961836,1720901441569,-500.0,0.00013999,2]
[331961837,1720901441578,-500.0,0.00013999,2]
[331961838,1720901441587,-500.0,0.00013999,2]
[331961839,1720901441597,-500.0,0.00013999,2]
[331961840,1720901441608,-508.58,0.00013999,2]
[331961841,1720901441618,-500.0,0.00013999,2]
[331961842,1720901441627,-562.97,0.00013999,2]
[331961843,1720901441637,-661.82,0.00013999,2]
[331961844,1720901441646,-12004.40788941,0.00014,2]
[331961852,1720901441861,-13128.39109983,0.00014,2]
[331961854,1720901441873,-4051.27967128,0.00014,2]
[331961858,1720901441907,-61651.70274152,0.00014,2]
[331961860,1720901441917,-145811.09107134,0.00014,2]
[331961863,1720901441933,-1541.98589132,0.00014,2]
[331962018,1720901443465,-500.0,0.00013999,2]
[331962020,1720901443474,-12540.6402259,0.00014,2]
[331962022,1720901443485,-1280.37745868,0.00014,2]
[331962025,1720901443498,-495.58079881,0.00014,2]
[331962027,1720901443513,-15868.53498095,0.00014,2]
[331962029,1720901443525,-1449.45668,0.00014,2]
[331962031,1720901443536,-8754.77445779,0.00014,2]
[331962033,1720901443547,-8961.21349788,0.00014,2]
[331962035,1720901443560,-438.96395159,0.00014,2]
[331962038,1720901443575,-1950.0,0.00014,2]
[331962040,1720901443586,-1319.07941141,0.00014,2]
[331962042,1720901443597,-115926.52389214,0.00014,2]
[331962232,1720901445814,-277.23573572,0.00014,2]
[331962233,1720901445867,-97192.95984137,0.00014,2]
[331962235,1720901445975,-76099.59567639,0.00014,2]
[331962236,1720901446030,-1444.79105706,0.00014,2]
[331962248,1720901716740,316.0773283,0.00011199,2]
[331962249,1720901938677,515.43,0.0001094,2]
[331962250,1720901947109,19513.40781974,0.00011199,2]
[331962251,1720902162628,518.5213064,0.00011199,2]
[331962252,1720902225178,5532.8324232,0.00011199,2]
[331962256,1720902356219,150.0,6.94e-05,2]
[331962260,1720902393618,8071.60206644,0.00011199,2]
[331962261,1720902397809,155.0,8.412e-05,2]
[331962262,1720902403191,473.7126144,8.412e-05,2]
[331962264,1720902436733,285.98048656,0.0001,2]
[331962267,1720902455122,2084.98350111,0.00011199,2]
[331962268,1720902511475,512.57,0.0001091,2]
[331962314,1720902589028,-242.98280419,0.0001126,2]
[331962349,1720902631785,-257.01719581,0.0001126,2]
[331962351,1720902631795,-500.0,0.0001126,2]
[331962354,1720902631806,-305.30912342,0.0001251,2]
[331962356,1720902631817,-250.0,0.00012738,2]
[331962358,1720902631829,-1000.0,0.00012798,2]
[331962360,1720902631840,-171.76,0.0001281,2]
[331962362,1720902631850,-1269.26040965,0.0001281,2]
[331962365,1720902631861,-211.5,0.00012885,2]
[331962367,1720902631871,-500.0,0.00012904,2]
[331962369,1720902631881,-1250.0,0.00013,2]
[331962371,1720902631890,-300.0,0.00013048,2]
[331962373,1720902631901,-8084.4379271,0.00013049,2]
[331962376,1720902631919,-850.40212826,0.00013049,2]
[331962380,1720902631958,-1114.15994464,0.00013049,2]
[331962382,1720902631969,-3005.60112897,0.00013128,2]
[331962384,1720902631980,-1013.68864111,0.00013128,2]
[331962386,1720902631990,-512.57,0.00013174,2]
[331962388,1720902631999,-11486.0,0.000132,5]
[331962390,1720902632008,-650.91919934,0.00013224,2]
[331962392,1720902632017,-476.10316361,0.00013224,2]
[331962394,1720902632026,-177.786747,0.00013229,2]
[331962396,1720902632035,-1507.87807155,0.00013472,2]
[331962397,1720902632044,-254.67875993,0.00013574,2]
[331962399,1720902632053,-150.0,0.00013691,2]
[331962401,1720902632062,-832.53,0.00013692,2]
[331962403,1720902632071,-419.58,0.00013692,2]
[331962404,1720902632081,-419.58,0.00013692,2]
[331962405,1720902632090,-917.75,0.00013692,2]
[331962406,1720902632099,-419.58,0.00013692,2]
[331962407,1720902632108,-832.53,0.00013692,2]
[331962408,1720902632117,-832.53,0.00013692,2]
[331962409,1720902632126,-419.58,0.00013692,2]
[331962410,1720902632136,-832.53,0.00013692,2]
[331962411,1720902632145,-169.65456058,0.00013699,2]
[331962412,1720902632154,-251.97,0.00013699,2]
[331962413,1720902632163,-247.11,0.00013699,2]
[331962414,1720902632172,-150.0,0.00013734,2]
[331962415,1720902632182,-150.0,0.00013737,2]
[331962416,1720902632191,-150.0,0.00013756,2]
[331962417,1720902632200,-150.0,0.00013796,2]
[331962418,1720902632209,-150.0,0.00013798,2]
[331962419,1720902632218,-150.0,0.00013824,2]
[331962420,1720902632227,-169.65456058,0.00013836,2]
[331962421,1720902632237,-150.0,0.00013838,2]
[331962423,1720902632246,-150.0,0.00013841,2]
[331962426,1720902632256,-150.0,0.00013868,2]
[331962429,1720902632267,-150.0,0.00013884,2]
[331962431,1720902632277,-500.0,0.00013887,2]
[331962434,1720902632288,-500.0,0.00013888,2]
[331962437,1720902632300,-369.14925316,0.00013889,2]
[331962441,1720902632311,-150.0,0.0001389,2]
[331962444,1720902632321,-220.02,0.0001389,3]
[331962447,1720902632330,-22856.4356,0.000139,2]
[331962450,1720902632344,-508.491,0.000139,2]
[331962453,1720902632353,-3404.2833,0.000139,2]
[331962456,1720902632363,-1000.0,0.000139,2]
[331962459,1720902632372,-411.3979,0.000139,2]
[331962461,1720902632383,-1000.0,0.000139,2]
[331962463,1720902632392,-1000.0,0.000139,2]
[331962465,1720902632403,-1000.0,0.000139,2]
[331962466,1720902632412,-1241.0,0.000139,2]
[331962467,1720902632422,-1000.0,0.000139,3]
[331962468,1720902632432,-1000.0,0.000139,3]
[331962469,1720902632441,-162.66868338,0.000139,2]
[331962470,1720902632450,-1000.0,0.000139,3]
[331962471,1720902632459,-1000.0,0.000139,3]
[331962472,1720902632468,-1000.0,0.000139,2]
[331962473,1720902632481,-1000.0,0.000139,3]
[331962474,1720902632490,-1000.0,0.000139,3]
[331962475,1720902632501,-1017.0,0.000139,2]
[331962476,1720902632511,-1000.0,0.000139,2]
[331962477,1720902632521,-1000.0,0.000139,2]
[331962478,1720902632530,-1000.0,0.000139,3]
[331962479,1720902632541,-1000.0,0.000139,3]
[331962480,1720902632550,-594.0,0.000139,3]
[331962481,1720902632559,-1000.0,0.000139,3]
[331962482,1720902632568,-1000.0,0.000139,2]
[331962483,1720902632577,-174.88201534,0.000139,2]
[331962484,1720902632586,-316.05201467,0.000139,2]
[331962485,1720902632595,-204.23794938,0.000139,2]
[331962486,1720902632604,-209.75934926,0.00013901,2]
[331962487,1720902632614,-150.0,0.00013921,2]
[331962488,1720902632623,-150.0,0.00013943,2]
[331962489,1720902632632,-150.0,0.00013961,2]
[331962490,1720902632641,-169.65456058,0.00013973,2]
[331962491,1720902632650,-446.168,0.0001398,2]
[331962492,1720902632658,-212.54,0.00013989,3]
[331962493,1720902632667,-637.63,0.00013989,3]
[331962494,1720902632676,-404.2516504,0.0001399,2]
[331962495,1720902632685,-404.2516504,0.0001399,2]
[331962496,1720902632694,-404.2516504,0.0001399,2]
[331962497,1720902632703,-404.2516504,0.0001399,2]
[331962498,1720902632712,-404.2516504,0.0001399,2]
[331962499,1720902632721,-795.831015,0.0001399,2]
[331962500,1720902632730,-795.831015,0.0001399,2]
[331962501,1720902632739,-795.831015,0.0001399,2]
[331962502,1720902632748,-795.831015,0.0001399,2]
[331962503,1720902632757,-795.831015,0.0001399,2]
[331962504,1720902632767,-167.88,0.0001399,3]
[331962505,1720902632775,-254.4478541,0.0001399,2]
[331962506,1720902632784,-254.4478541,0.0001399,2]
[331962507,1720902632793,-254.4478541,0.0001399,2]
[331962508,1720902632803,-404.2516504,0.00013998,2]
[331962509,1720902632812,-694.9912943,0.00013998,2]
[331962510,1720902632821,-500.0,0.00013999,2]
[331962511,1720902632830,-398.72797041,0.00013999,2]
[331962512,1720902632839,-500.0,0.00013999,2]
[331962513,1720902632848,-500.0,0.00013999,2]
[331962514,1720902632857,-500.0,0.00013999,2]
[331962515,1720902632866,-500.0,0.00013999,2]
[331962516,1720902632875,-500.0,0.00013999,2]
[331962517,1720902632885,-414.45317628,0.00013999,2]
[331962518,1720902632894,-500.0,0.00013999,2]
[331962519,1720902632903,-742.36440838,0.00013999,5]
[331962520,1720902632912,-266.93234512,0.00013999,2]
[331962521,1720902632922,-500.0,0.00013999,2]
[331962522,1720902632931,-500.0,0.00013999,2]
[331962523,1720902632940,-500.0,0.00013999,2]
[331962524,1720902632950,-500.0,0.00013999,2]
[331962525,1720902632960,-500.0,0.00013999,2]
[331962526,1720902632969,-500.0,0.00013999,2]
[331962527,1720902632979,-500.0,0.00013999,2]
[331962528,1720902632989,-500.0,0.00013999,2]
[331962529,1720902632998,-500.0,0.00013999,2]
[331962530,1720902633008,-500.0,0.00013999,2]
[331962531,1720902633177,-400.0,0.00013999,2]
[331962532,1720902633187,-500.0,0.00013999,2]
[331962533,1720902633197,-500.0,0.00013999,2]
[331962534,1720902633206,-500.0,0.00013999,2]
[331962535,1720902633215,-500.0,0.00013999,2]
[331962536,1720902633225,-500.0,0.00013999,2]
[331962537,1720902633235,-500.0,0.00013999,2]
[331962538,1720902633245,-500.0,0.00013999,2]
[331962539,1720902633256,-524.35,0.00013999,2]
[331962540,1720902633266,-500.0,0.00013999,2]
[331962541,1720902633275,-500.0,0.00013999,2]
[331962542,1720902633286,-500.0,0.00013999,2]
[331962543,1720902633297,-500.0,0.00013999,2]
[331962544,1720902633307,-557.43,0.00013999,2]
[331962545,1720902633316,-526.09,0.00013999,2]
[331962546,1720902633326,-500.0,0.00013999,2]
[331962547,1720902633335,-500.0,0.00013999,2]
[331962548,1720902633344,-557.98,0.00013999,2]
[331962549,1720902633354,-500.0,0.00013999,2]
[331962550,1720902633363,-500.0,0.00013999,2]
[331962551,1720902633372,-300.0,0.00013999,2]
[331962552,1720902633382,-300.0,0.00013999,2]
[331962553,1720902633391,-500.0,0.00013999,2]
[331962554,1720902633400,-500.0,0.00013999,2]
[331962555,1720902633410,-500.0,0.00013999,2]
[331962556,1720902633419,-500.0,0.00013999,2]
[331962557,1720902633428,-560.34,0.00013999,2]
[331962558,1720902633438,-502.47,0.00013999,2]
[331962559,1720902633448,-500.0,0.00013999,2]
[331962560,1720902633457,-701.86,0.00013999,2]
[331962561,1720902633466,-300.0,0.00013999,2]
[331962562,1720902633475,-300.0,0.00013999,2]
[331962563,1720902633488,-1584.81,0.00013999,2]
[331962564,1720902633497,-500.0,0.00013999,2]
[331962565,1720902633506,-500.0,0.00013999,2]
[331962566,1720902633516,-300.0,0.00013999,2]
[331962567,1720902633525,-300.0,0.00013999,2]
[331962568,1720902633537,-381.95057247,0.00013999,2]
[331962569,1720902633552,-500.0,0.00013999,2]
[331962570,1720902633562,-500.0,0.00013999,2]
[331962571,1720902633572,-500.0,0.00013999,2]
[331962572,1720902633581,-500.0,0.00013999,2]
[331962573,1720902633592,-516.11480144,0.00013999,2]
[331962574,1720902633602,-500.0,0.00013999,2]
[331962575,1720902633613,-434.49949951,0.00013999,2]
[331962576,1720902633623,-500.0,0.00013999,2]
[331962577,1720902633634,-500.0,0.00013999,2]
[331962578,1720902633644,-500.0,0.00013999,2]
[331962579,1720902633654,-500.0,0.00013999,2]
[331962580,1720902633663,-500.0,0.00013999,2]
[331962581,1720902633672,-500.0,0.00013999,2]
[331962582,1720902633682,-500.0,0.00013999,2]
[331962583,1720902633692,-529.06,0.00013999,2]
[331962584,1720902633702,-634.25,0.00013999,2]
[331962585,1720902633711,-500.0,0.00013999,2]
[331962586,1720902633721,-781.0,0.00014,2]
[331962587,1720902633731,-328882.36768243,0.00014,2]
[331962588,1720902633741,-1000.0,0.00014,2]
[331962589,1720902633750,-41716.91841008,0.00014,2]
[331962590,1720902633968,-3244.55441955,0.00014,2]
[331962591,1720902633980,-3940.04376362,0.00014,2]
[331962592,1720902634003,-1097.7,0.00014,2]
[331962593,1720902634278,1250.93121007,0.00011199,2]
[331962612,1720902637766,-321.30114503,0.000139,2]
[331962613,1720902637780,-339.66456551,0.00013999,2]
[331962614,1720902637931,-160.33543449,0.00013999,2]
[331962615,1720902637944,-500.0,0.00013999,2]
[331962616,1720902637956,-13.54885497,0.00014,2]
[331962826,1720902639836,-2999.9988868,0.00014,2]
[331962880,1720902640971,-266.03632185,0.00014,2]
[331962881,1720902640985,-1562.05622752,0.00014,2]
[331962882,1720902641127,-73725.10164404,0.00014,2]
[331962883,1720902641138,-338258.7409724,0.00014,2]
[331962884,1720902641151,-504673.30987191,0.00014,2]
[331962885,1720902641162,-2000.0,0.00014,2]
[331962886,1720902641173,-2500.0,0.00014,2]
[331962887,1720902641184,-767.47924399,0.00014,2]
[331962888,1720902641195,-155.43410383,0.00014,2]
[331962889,1720902641205,-263724.67111929,0.00014,2]
[331962890,1720902641216,-150.303,0.00014,2]
[331962891,1720902641227,-19764.62809743,0.00014,2]
[331962892,1720902641244,-65864.16137191,0.00014,2]
[331963190,1720902644181,-500.0,0.00013999,2]
[331963192,1720902644191,-649.07228572,0.00014,2]
[331963201,1720902644266,-1133.20130534,0.00014,2]
[331963235,1720902645780,-1322.6467692,0.00013999,2]
[331963236,1720902645791,-751.0,0.00014,2]
[331963237,1720902645800,-2845.42443223,0.00014,2]
[331963238,1720902645839,-352.83757559,0.00014,2]
[331963239,1720902645899,-715.71172476,0.00014,2]
[331963240,1720902646014,-11775.9048,0.00014,2]
[331963256,1720902902055,313.84024762,0.00011199,2]
[331963267,1720903051523,495.6,0.00010793,2]
[331963274,1720903377654,425.08,0.00010959,2]
[331963275,1720903424637,1194.44889452,0.00011199,2]
[331963278,1720903525680,155.0,0.00011199,2]
[331963279,1720903551479,470.82,0.00010736,2]
[331963281,1720903606167,1194.44889452,0.00011199,2]
[331963292,1720903658751,3750.76196334,0.000111,2]
[331963293,1720903658772,2000.0,0.000111,2]
[331963294,1720903658794,363982.0,0.000111,2]
[331963295,1720903658821,858682.75628751,0.000111,2]
[331963296,1720903658846,2000000.0,0.000111,2]
[331963297,1720903658871,795517.65744845,0.000111,2]
[331963298,1720903658897,2000000.0,0.000111,2]
[331963299,1720903658964,-274.39629502,0.000111,2]
[331963300,1720903659466,-150.0,0.000111,2]
[331963301,1720903659892,-150.0,0.000111,2]
[331963302,1720903660537,-150.0,0.000111,2]
[331963303,1720903660973,-150.0,0.000111,2]
[331963304,1720903662364,-150.0,0.000111,2]
[331963305,1720903662751,-150.0,0.000111,2]
[331963306,1720903663155,-150.0,0.000111,2]
[331963307,1720903663697,-150.0,0.000111,2]
[331963308,1720903664419,-150.0,0.000111,2]
[331963309,1720903664835,-150.0,0.000111,2]
[331963310,1720903665235,-150.0,0.000111,2]
[331963311,1720903666027,-150.0,0.000111,2]
[331963312,1720903667563,-150.0,0.000111,2]
[331963313,1720903668292,-150.0,0.000111,2]
[331963314,1720903669010,-150.0,0.000111,2]
[331963315,1720903669547,-150.0,0.000111,2]
[331963316,1720903669987,-150.0,0.000111,2]
[331963317,1720903670400,-150.0,0.000111,2]
[331963318,1720903670778,-150.0,0.000111,2]
[331963364,1720903751030,-300.0,9.937e-05,2]
[331963365,1720903751054,-18766.66,9.938e-05,2]
[331963372,1720903763632,-3978.50623357,9.938e-05,2]
[331963373,1720903763673,-3909.65362359,9.938e-05,2]
[331963380,1720903788651,-4136.26943072,9.938e-05,2]
[331963382,1720903788713,-4136.26943072,9.938e-05,2]
[331963390,1720903831895,-1203.63841064,9.938e-05,2]
[331963391,1720903831906,-2070.22537774,9.938e-05,2]
[331963392,1720903831918,-23281.94924607,9.938e-05,2]
[331963393,1720903831931,-511.82824695,9.938e-05,2]
[331963394,1720903831941,-2874.4149749,0.00011098,2]
[331963395,1720903831950,-1194.44889452,0.00011098,2]
[331963396,1720903831960,-300.0,0.00011099,2]
[331963397,1720903831969,-150.0,0.00011099,2]
[331963398,1720903831978,-11252.98024164,0.000111,2]
[331963399,1720903831989,-3332.62267,0.000111,2]
[331963400,1720903832000,-302.0,0.000111,2]
[331963401,1720903832011,-241004.94814957,0.000111,2]
[331963402,1720903832024,-471.98453587,0.000111,2]
[331963403,1720903832035,-2464.57032252,0.000111,2]
[331963404,1720903832054,-418.9295176,0.000111,2]
[331963405,1720903832065,-700.0,0.000111,2]
[331963406,1720903832076,-3421.26789501,0.000111,2]
[331963407,1720903832091,-666.42,0.000111,2]
[331963408,1720903832103,-465.65120639,0.000111,2]
[331963409,1720903832114,-6392.78316401,0.000111,2]
[331963410,1720903832125,-46218.61985079,0.000111,2]
[331963411,1720903832135,-3200.0,0.000111,2]
[331963415,1720903832355,-8440.40459557,0.000111,2]
[331963417,1720903832370,-1289013.07982802,0.000111,2]
[331963420,1720903832386,-544.57707993,0.000111,2]
[331963422,1720903832397,-418.54007673,0.000111,2]
[331963424,1720903832408,-837.82808505,0.000111,2]
[331963426,1720903832420,-1625.57304693,0.000111,2]
[331963430,1720903832444,-811.05669613,0.000111,2]
[331963432,1720903832455,-795.57001,0.000111,2]
[331963435,1720903832472,-493.5770007,0.000111,2]
[331963437,1720903832484,-264.82796935,0.000111,2]
[331963439,1720903832495,-544.40001,0.000111,2]
[331963457,1720903837805,-1985.90232585,0.000111,2]
[331963458,1720903837816,-764.55470736,0.000111,2]
[331963459,1720903837828,-1023.45776092,0.000111,2]
[331963460,1720903837839,-3146.7938,0.000111,2]
[331963461,1720903837851,-26401.64566378,0.000111,2]
[331963462,1720903837862,-623.44199861,0.000111,2]
[331963463,1720903837877,-769.65750046,0.000111,2]
[331963464,1720903837893,-351.51451312,0.000111,2]
[331963465,1720903837904,-286.78,0.000111,2]
[331963466,1720903837927,-1011022.14647958,0.000111,2]
[331963467,1720903837938,-3778.34015739,0.000111,2]
[331963468,1720903837950,-326.355,0.000111,2]
[331963469,1720903837963,-451.15504761,0.000111,2]
[331963470,1720903837974,-769.96443153,0.000111,2]
[331963471,1720903837988,-292.04521374,0.000111,2]
[331963472,1720903837999,-32334.02577703,0.000111,2]
[331963473,1720903838010,-425.12106461,0.000111,2]
[331963474,1720903838021,-3396.04284698,0.000111,2]
[331963475,1720903838037,-884.28010879,0.000111,2]
[331963476,1720903838048,-287.22303594,0.000111,2]
[331963477,1720903838060,-311.184893,0.000111,2]
[331963478,1720903838071,-11269.06860752,0.000111,2]
[331963479,1720903838083,-827.75998797,0.000111,2]
[331963480,1720903838094,-1912.16377316,0.000111,2]
[331963481,1720903838118,-547478.73270948,0.000111,2]
[331963482,1720903838129,-394.14575585,0.000111,2]
[331963483,1720903838141,-833.69583873,0.000111,2]
[331963484,1720903838152,-6692.60997119,0.000111,2]
[331963491,1720903838337,-7526.984921,0.000111,2]
[331963492,1720903838349,-10299.29559822,0.000111,2]
[331963628,1720903839994,-1819.20996264,0.000111,2]
[331963630,1720903840005,-2938.02666027,0.000111,2]
[331963633,1720903840026,-760.11591725,0.000111,2]
[331963636,1720903840037,-4966.7063304,0.000111,2]
[331963638,1720903840048,-419.77238971,0.000111,2]
[331963640,1720903840059,-1656.58520388,0.000111,2]
[331963642,1720903840070,-10781.60895399,0.000111,2]
[331963652,1720903840152,-1826.83352387,0.000111,2]
[331963654,1720903840163,-994.82690771,0.000111,2]
[331963656,1720903840174,-594.20727757,0.000111,2]
[331963735,1720903841022,-771.57000015,0.000111,2]
[331963737,1720903841034,-22103.86031125,0.000111,2]
[331963743,1720903841086,-5731222.66376147,0.000111,2]
[331963750,1720903841142,-2552.07302419,0.000111,2]
[331963757,1720903841200,-1500.042676,0.000111,2]
[331963759,1720903841211,-1216.15843688,0.000111,2]
[331963761,1720903841223,-1804.47217148,0.000111,2]
[331963764,1720903841235,-3999.64712997,0.000111,2]
[331963767,1720903841256,-695.45122669,0.000111,2]
[331963769,1720903841267,-457.06658257,0.000111,2]
[331963771,1720903841278,-10693.98449672,0.000111,2]
[331963773,1720903841294,-6347.26665407,0.000111,2]
[331963775,1720903841306,-6161.1919003,0.000111,2]
[331963778,1720903841317,-4406.4475,0.000111,2]
[331963938,1720903842877,-1299.650178,0.000111,2]
[331963939,1720903842936,-31837.60381992,0.000111,2]
[331963940,1720903842947,-6246.50973598,0.000111,2]
[331963944,1720903842992,-1082216.3667887,0.000111,2]
[331963946,1720903843003,-463.17711551,0.000111,2]
[331963949,1720903843015,-1371.16970358,0.000111,2]
[331963951,1720903843025,-993.56644484,0.000111,2]
[331964031,1720903844068,-688.56235155,0.000111,2]
[331964032,1720903844091,-2746.85478186,0.000111,2]
[331964035,1720903846040,-648.14925961,0.000111,2]
[331964036,1720903846204,-751.33678967,0.000111,2]
[331964037,1720903846216,-252.03905758,0.000111,2]
[331964038,1720903846227,-13467.77566727,0.000111,2]
[331964039,1720903846237,-8265.44517896,0.000111,2]
[331964040,1720903846249,-724.30320271,0.000111,2]
[331964041,1720903846260,-12545.53193996,0.000111,2]
[331964042,1720903846287,-2061.611112,0.000111,2]
[331964043,1720903846383,-109718.35102321,0.000111,2]
[331964044,1720903846395,-631.34941224,0.000111,2]
[331964045,1720903846405,-500.0,0.000111,2]
[331964046,1720903846416,-7020.0,0.000111,2]
[331964047,1720903846501,-843.18706783,0.000111,2]
[331964048,1720903846512,-677.86855122,0.000111,2]
[331964049,1720903846523,-133837.93935492,0.000111,2]
[331964050,1720903846542,-694.63,0.000111,2]
[331964051,1720903951810,-600.0,0.000102,3]
[331964052,1720903951830,-216.70324986,0.000102,2]
[331964053,1720903951851,-1300.0,0.000103,3]
[331964054,1720903951872,-1900.0,0.000104,3]
[331964055,1720903951893,-2600.0,0.000105,3]
[331964056,1720903951926,-3200.0,0.000106,3]